[Event "Titled Tuesday Blitz November 14 Late 2023"]
[White "Aarakan, J"]
[Black "Chylewski, Patryk"]
[WhiteFideId "9946276"]
[BlackFideId "1186191"]
[WhiteElo "2211"]
[BlackElo "2550"]
[Result "1-0"]
[Round "1"]
[TimeControl "180+1"]
[Date "2023.11.14"]
[WhiteClock "0:00:33"]
[BlackClock "0:00:04"]
[Board "151"]

1. e4 {[%clk 0:02:59]}  c5 {[%clk 0:02:58]} 2. Nf3 {[%clk 0:02:59]}  e6 {[%clk 0:02:58]} 3. c3 {[%clk 0:02:58]}  Nf6 {[%clk 0:02:58]} 4. e5 {[%clk 0:02:57]}  Nd5 {[%clk 0:02:59]} 5. d4 {[%clk 0:02:58]}  cxd4 {[%clk 0:02:59]} 6. cxd4 {[%clk 0:02:58]}  d6 {[%clk 0:03:00]} 7. exd6 {[%clk 0:02:58]}  Bxd6 {[%clk 0:03:00]} 8. Nc3 {[%clk 0:02:58]}  O-O {[%clk 0:03:00]} 9. Bd3 {[%clk 0:02:56]}  Nf4 {[%clk 0:02:58]} 10. Bxf4 {[%clk 0:02:53]}  Bxf4 {[%clk 0:02:59]} 11. O-O {[%clk 0:02:53]}  Nd7 {[%clk 0:02:51]} 12. Qe2 {[%clk 0:02:52]}  Nf6 {[%clk 0:02:50]} 13. Rfd1 {[%clk 0:02:49]}  b6 {[%clk 0:02:50]} 14. Be4 {[%clk 0:02:48]}  Rb8 {[%clk 0:02:48]} 15. g3 {[%clk 0:02:44]}  Bd6 {[%clk 0:02:45]} 16. d5 {[%clk 0:02:27]}  e5 {[%clk 0:02:46]} 17. Bc2 {[%clk 0:02:22]}  Bg4 {[%clk 0:02:41]} 18. Ne4 {[%clk 0:02:13]}  Nxe4 {[%clk 0:02:24]} 19. Qxe4 {[%clk 0:02:12]}  f5 {[%clk 0:02:24]} 20. Qe3 {[%clk 0:02:12]}  e4 {[%clk 0:02:23]} 21. Nd4 {[%clk 0:02:04]}  Bxd1 {[%clk 0:02:22]} 22. Rxd1 {[%clk 0:02:03]}  Qf6 {[%clk 0:02:14]} 23. Ne6 {[%clk 0:01:52]}  Rfc8 {[%clk 0:02:12]} 24. Bb3 {[%clk 0:01:51]}  Qxb2 {[%clk 0:02:11]} 25. Qg5 {[%clk 0:01:44]}  Qf6 {[%clk 0:02:09]} 26. Qxf6 {[%clk 0:01:37]}  gxf6 {[%clk 0:02:10]} 27. Nd4 {[%clk 0:01:38]}  Rc3 {[%clk 0:02:00]} 28. Nxf5 {[%clk 0:01:37]}  Rd8 {[%clk 0:01:57]} 29. Re1 {[%clk 0:01:35]}  Bc5 {[%clk 0:01:43]} 30. Rxe4 {[%clk 0:01:30]}  Rxb3 {[%clk 0:01:18]} 31. axb3 {[%clk 0:01:26]}  Rxd5 {[%clk 0:01:18]} 32. Ne7+ {[%clk 0:01:21]}  Bxe7 {[%clk 0:01:18]} 33. Rxe7 {[%clk 0:01:22]}  a5 {[%clk 0:01:16]} 34. Re3 {[%clk 0:01:11]}  Kf7 {[%clk 0:01:00]} 35. Kf1 {[%clk 0:01:10]}  Re5 {[%clk 0:00:59]} 36. Rc3 {[%clk 0:01:03]}  Ke7 {[%clk 0:00:46]} 37. f4 {[%clk 0:01:03]}  Re4 {[%clk 0:00:25]} 38. Kf2 {[%clk 0:01:01]}  Kd6 {[%clk 0:00:24]} 39. Kf3 {[%clk 0:01:01]}  f5 {[%clk 0:00:20]} 40. g4 {[%clk 0:00:56]}  Re8 {[%clk 0:00:08]} 41. gxf5 {[%clk 0:00:53]}  Kd5 {[%clk 0:00:08]} 42. h4 {[%clk 0:00:45]}  b5 {[%clk 0:00:06]} 43. Rc7 {[%clk 0:00:40]}  h5 {[%clk 0:00:05]} 44. Ra7 {[%clk 0:00:37]}  Kc5 {[%clk 0:00:05]} 45. Rxa5 {[%clk 0:00:36]}  Kb4 {[%clk 0:00:06]} 46. Ra7 {[%clk 0:00:34]}  Kxb3 {[%clk 0:00:05]} 47. f6 {[%clk 0:00:35]}  Kc3 {[%clk 0:00:04]} 48. f7 {[%clk 0:00:35]}  Rf8 {[%clk 0:00:03]} 49. Rc7+ {[%clk 0:00:35]}  Kd3 {[%clk 0:00:03]} 50. Rd7+ {[%clk 0:00:32]}  Kc3 {[%clk 0:00:03]} 51. Rc7+ {[%clk 0:00:32]}  Kd3 {[%clk 0:00:03]} 52. Rd7+ {[%clk 0:00:32]}  Kc4 {[%clk 0:00:03]} 53. Rb7 {[%clk 0:00:32]}  b4 {[%clk 0:00:03]} 54. Ke4 {[%clk 0:00:33]}  b3 {[%clk 0:00:02]} 55. Ke5 {[%clk 0:00:33]}  Kc3 {[%clk 0:00:01]} 56. Ke6 {[%clk 0:00:33]}  b2 {[%clk 0:00:02]} 57. Ke7 {[%clk 0:00:33]}  Rc8 {[%clk 0:00:02]} 58. f8=Q {[%clk 0:00:31]}  Rxf8 {[%clk 0:00:02]} 59. Kxf8 {[%clk 0:00:31]}  Kc2 {[%clk 0:00:03]} 60. Rxb2+ {[%clk 0:00:31]}  Kxb2 {[%clk 0:00:03]} 61. f5 {[%clk 0:00:32]}  Kb3 {[%clk 0:00:04]} 62. f6 {[%clk 0:00:32]}  Kc4 {[%clk 0:00:04]} 63. f7 {[%clk 0:00:33]} 1-0


[Site "https://www.chess.com"]

[Event "Titled Tuesday Blitz November 14 Late 2023"]
[White "The_Sherman_Variation"]
[Black "Acosta Cruz, Oscar Yosimar"]
[BlackFideId "5111269"]
[WhiteElo "2549"]
[BlackElo "2205"]
[Result "1-0"]
[Round "1"]
[TimeControl "180+1"]
[Date "2023.11.14"]
[WhiteClock "0:01:07"]
[BlackClock "0:00:43"]
[Board "152"]

1. e4 {[%clk 0:02:58]}  c6 {[%clk 0:02:56]} 2. d4 {[%clk 0:02:55]}  d5 {[%clk 0:02:57]} 3. Nc3 {[%clk 0:02:56]}  dxe4 {[%clk 0:02:57]} 4. Nxe4 {[%clk 0:02:56]}  Bf5 {[%clk 0:02:57]} 5. Qf3 {[%clk 0:02:56]}  e6 {[%clk 0:02:57]} 6. c3 {[%clk 0:02:56]}  Nd7 {[%clk 0:02:56]} 7. Ne2 {[%clk 0:02:55]}  Ngf6 {[%clk 0:02:55]} 8. N4g3 {[%clk 0:02:55]}  Bg6 {[%clk 0:02:55]} 9. Nf4 {[%clk 0:02:56]}  Bd6 {[%clk 0:02:40]} 10. h4 {[%clk 0:02:54]}  Nd5 {[%clk 0:02:38]} 11. Nxd5 {[%clk 0:02:48]}  cxd5 {[%clk 0:02:38]} 12. h5 {[%clk 0:02:49]}  Bc2 {[%clk 0:02:33]} 13. Bb5 {[%clk 0:02:44]}  h6 {[%clk 0:02:27]} 14. Bf4 {[%clk 0:02:37]}  Qc7 {[%clk 0:02:22]} 15. Bxd6 {[%clk 0:02:37]}  Qxd6 {[%clk 0:02:22]} 16. O-O {[%clk 0:02:32]}  O-O {[%clk 0:02:21]} 17. Rac1 {[%clk 0:02:30]}  Bh7 {[%clk 0:02:20]} 18. Bxd7 {[%clk 0:02:27]}  Qxd7 {[%clk 0:02:20]} 19. Qe3 {[%clk 0:02:25]}  Qb5 {[%clk 0:02:10]} 20. b3 {[%clk 0:02:23]}  Rac8 {[%clk 0:02:10]} 21. f4 {[%clk 0:02:18]}  Rfe8 {[%clk 0:02:05]} 22. Rfe1 {[%clk 0:02:13]}  a5 {[%clk 0:02:05]} 23. Nf1 {[%clk 0:02:04]}  Be4 {[%clk 0:02:03]} 24. Nd2 {[%clk 0:02:03]}  f5 {[%clk 0:02:02]} 25. Nf3 {[%clk 0:02:01]}  a4 {[%clk 0:01:58]} 26. b4 {[%clk 0:01:51]}  Bxf3 {[%clk 0:01:36]} 27. Qxf3 {[%clk 0:01:52]}  Rc6 {[%clk 0:01:36]} 28. Re3 {[%clk 0:01:49]}  Qc4 {[%clk 0:01:32]} 29. Rce1 {[%clk 0:01:43]}  Qxa2 {[%clk 0:01:30]} 30. Qg3 {[%clk 0:01:43]}  Qd2 {[%clk 0:01:13]} 31. Qg6 {[%clk 0:01:41]}  Re7 {[%clk 0:01:12]} 32. Kh2 {[%clk 0:01:25]}  e5 {[%clk 0:01:03]} 33. Qxf5 {[%clk 0:01:21]}  e4 {[%clk 0:01:01]} 34. Qxd5+ {[%clk 0:01:20]}  Kh7 {[%clk 0:00:59]} 35. Rxe4 {[%clk 0:01:16]}  Rf7 {[%clk 0:00:45]} 36. Qxf7 {[%clk 0:01:11]}  a3 {[%clk 0:00:43]} 37. Re8 {[%clk 0:01:07]} 1-0


[Site "https://www.chess.com"]

[Event "Titled Tuesday Blitz November 14 Late 2023"]
[White "Adel, Sara"]
[Black "Cervantes Landeiro, Thalia"]
[WhiteFideId "10616764"]
[BlackFideId "3520498"]
[WhiteElo "2201"]
[BlackElo "2547"]
[Result "0-1"]
[Round "1"]
[TimeControl "180+1"]
[Date "2023.11.14"]
[WhiteClock "0:00:06"]
[BlackClock "0:00:16"]
[Board "153"]

1. e4 {[%clk 0:02:59]}  c5 {[%clk 0:02:58]} 2. Nc3 {[%clk 0:02:58]}  d6 {[%clk 0:02:57]} 3. f4 {[%clk 0:02:58]}  g6 {[%clk 0:02:57]} 4. Nf3 {[%clk 0:02:58]}  Bg7 {[%clk 0:02:58]} 5. Bc4 {[%clk 0:02:58]}  Nc6 {[%clk 0:02:58]} 6. O-O {[%clk 0:02:59]}  e6 {[%clk 0:02:58]} 7. d3 {[%clk 0:02:58]}  Nge7 {[%clk 0:02:58]} 8. Qe1 {[%clk 0:02:58]}  O-O {[%clk 0:02:58]} 9. f5 {[%clk 0:02:58]}  gxf5 {[%clk 0:02:57]} 10. Qh4 {[%clk 0:02:57]}  Ng6 {[%clk 0:02:43]} 11. Qh5 {[%clk 0:02:56]}  f4 {[%clk 0:02:41]} 12. Ng5 {[%clk 0:02:11]}  h6 {[%clk 0:02:36]} 13. Nxf7 {[%clk 0:02:11]}  Kxf7 {[%clk 0:02:07]} 14. Bxf4 {[%clk 0:01:23]}  Ne7 {[%clk 0:01:19]} 15. Bxd6+ {[%clk 0:00:22]}  Kg8 {[%clk 0:01:18]} 16. Nb5 {[%clk 0:00:21]}  Rxf1+ {[%clk 0:00:59]} 17. Rxf1 {[%clk 0:00:18]}  a6 {[%clk 0:00:39]} 18. Bxe7 {[%clk 0:00:18]}  Nxe7 {[%clk 0:00:35]} 19. Qf7+ {[%clk 0:00:18]}  Kh8 {[%clk 0:00:35]} 20. Nc3 {[%clk 0:00:13]}  Bd7 {[%clk 0:00:33]} 21. Bxe6 {[%clk 0:00:13]}  Bxe6 {[%clk 0:00:27]} 22. Qxe6 {[%clk 0:00:13]}  Ng8 {[%clk 0:00:25]} 23. Rf7 {[%clk 0:00:13]}  Qg5 {[%clk 0:00:25]} 24. h3 {[%clk 0:00:13]}  Qc1+ {[%clk 0:00:17]} 25. Kh2 {[%clk 0:00:12]}  Qg5 {[%clk 0:00:16]} 26. Nd5 {[%clk 0:00:12]}  Be5+ {[%clk 0:00:15]} 27. Kg1 {[%clk 0:00:08]}  Qc1+ {[%clk 0:00:14]} 28. Rf1 {[%clk 0:00:09]}  Bd4+ {[%clk 0:00:14]} 29. Kh2 {[%clk 0:00:08]}  Qxf1 {[%clk 0:00:15]} 30. Qg4 {[%clk 0:00:05]}  Qf7 {[%clk 0:00:14]} 31. Nc7 {[%clk 0:00:06]}  Be5+ {[%clk 0:00:14]} 32. g3 {[%clk 0:00:04]}  Bxc7 {[%clk 0:00:15]} 33. h4 {[%clk 0:00:05]}  Rf8 {[%clk 0:00:15]} 34. Kh3 {[%clk 0:00:06]}  Qf1+ {[%clk 0:00:15]} 35. Kh2 {[%clk 0:00:06]}  Rf2# {[%clk 0:00:16]} 0-1


[Site "https://www.chess.com"]

[Event "Titled Tuesday Blitz November 14 Late 2023"]
[White "Hirneise, Jens"]
[Black "Floresvillar Gonzalez, Luis Migu"]
[WhiteFideId "24614734"]
[BlackFideId "5100542"]
[WhiteElo "2547"]
[BlackElo "2200"]
[Result "1-0"]
[Round "1"]
[TimeControl "180+1"]
[Date "2023.11.14"]
[WhiteClock "0:01:03"]
[BlackClock "0:00:51"]
[Board "154"]

1. b3 {[%clk 0:02:57]}  d5 {[%clk 0:02:58]} 2. Bb2 {[%clk 0:02:57]}  Bf5 {[%clk 0:02:58]} 3. d3 {[%clk 0:02:57]}  e6 {[%clk 0:02:57]} 4. Nd2 {[%clk 0:02:58]}  Nf6 {[%clk 0:02:56]} 5. g3 {[%clk 0:02:57]}  c5 {[%clk 0:02:54]} 6. Bg2 {[%clk 0:02:58]}  Nc6 {[%clk 0:02:53]} 7. e4 {[%clk 0:02:58]}  dxe4 {[%clk 0:02:52]} 8. dxe4 {[%clk 0:02:59]}  Bg4 {[%clk 0:02:51]} 9. Ne2 {[%clk 0:02:54]}  Nd4 {[%clk 0:02:47]} 10. f3 {[%clk 0:02:50]}  Bh5 {[%clk 0:02:42]} 11. O-O {[%clk 0:02:46]}  e5 {[%clk 0:02:39]} 12. Nc4 {[%clk 0:02:44]}  Bd6 {[%clk 0:02:28]} 13. c3 {[%clk 0:02:34]}  Nxe2+ {[%clk 0:02:27]} 14. Qxe2 {[%clk 0:02:35]}  Bc7 {[%clk 0:02:22]} 15. Rad1 {[%clk 0:02:30]}  Qe7 {[%clk 0:02:22]} 16. Ne3 {[%clk 0:02:31]}  O-O {[%clk 0:02:20]} 17. g4 {[%clk 0:02:28]}  Bg6 {[%clk 0:02:16]} 18. g5 {[%clk 0:02:26]}  Nh5 {[%clk 0:02:03]} 19. Nd5 {[%clk 0:02:22]}  Qxg5 {[%clk 0:02:03]} 20. Nxc7 {[%clk 0:02:20]}  Nf4 {[%clk 0:02:03]} 21. Qc2 {[%clk 0:02:19]}  Rad8 {[%clk 0:01:58]} 22. Bc1 {[%clk 0:02:01]}  h5 {[%clk 0:01:36]} 23. Bxf4 {[%clk 0:01:56]}  exf4 {[%clk 0:01:33]} 24. Rxd8 {[%clk 0:01:44]}  Rxd8 {[%clk 0:01:32]} 25. Rd1 {[%clk 0:01:41]}  Rxd1+ {[%clk 0:01:30]} 26. Qxd1 {[%clk 0:01:39]}  h4 {[%clk 0:01:30]} 27. h3 {[%clk 0:01:38]}  f5 {[%clk 0:01:23]} 28. Ne6 {[%clk 0:01:28]}  Qf6 {[%clk 0:01:20]} 29. Qd8+ {[%clk 0:01:26]}  Qxd8 {[%clk 0:01:16]} 30. Nxd8 {[%clk 0:01:27]}  fxe4 {[%clk 0:01:17]} 31. fxe4 {[%clk 0:01:26]}  b5 {[%clk 0:01:14]} 32. Ne6 {[%clk 0:01:21]}  c4 {[%clk 0:01:13]} 33. bxc4 {[%clk 0:01:20]}  bxc4 {[%clk 0:01:13]} 34. Nxf4 {[%clk 0:01:21]}  Bf7 {[%clk 0:01:12]} 35. e5 {[%clk 0:01:21]}  g5 {[%clk 0:01:12]} 36. Nd5 {[%clk 0:01:20]}  a5 {[%clk 0:01:07]} 37. Ne3 {[%clk 0:01:18]}  Kg7 {[%clk 0:01:05]} 38. Bd5 {[%clk 0:01:17]}  Bg6 {[%clk 0:00:57]} 39. Nxc4 {[%clk 0:01:10]}  Bb1 {[%clk 0:00:56]} 40. Nd6 {[%clk 0:01:09]}  Kg6 {[%clk 0:00:54]} 41. Be4+ {[%clk 0:01:03]}  Kg7 {[%clk 0:00:51]} 42. Bxb1 {[%clk 0:01:03]} 1-0


[Site "https://www.chess.com"]

[Event "Titled Tuesday Blitz November 14 Late 2023"]
[White "Pinheiro, Iung Alicio de O."]
[Black "Curtis, John"]
[WhiteFideId "2104350"]
[BlackFideId "3200256"]
[WhiteElo "2546"]
[BlackElo "2178"]
[Result "1-0"]
[Round "1"]
[TimeControl "180+1"]
[Date "2023.11.14"]
[WhiteClock "0:00:22"]
[BlackClock "0:00:14"]
[Board "156"]

1. Nf3 {[%clk 0:02:49]}  Nf6 {[%clk 0:02:56]} 2. b3 {[%clk 0:02:49]}  g6 {[%clk 0:02:56]} 3. Bb2 {[%clk 0:02:49]}  Bg7 {[%clk 0:02:57]} 4. g3 {[%clk 0:02:50]}  O-O {[%clk 0:02:57]} 5. Bg2 {[%clk 0:02:50]}  d6 {[%clk 0:02:56]} 6. d4 {[%clk 0:02:50]}  Nbd7 {[%clk 0:02:54]} 7. O-O {[%clk 0:02:49]}  Ne4 {[%clk 0:02:54]} 8. c4 {[%clk 0:02:44]}  c5 {[%clk 0:02:49]} 9. Qc2 {[%clk 0:02:38]}  f5 {[%clk 0:02:40]} 10. Nc3 {[%clk 0:02:25]}  Ndf6 {[%clk 0:02:22]} 11. Rad1 {[%clk 0:02:20]}  Nxc3 {[%clk 0:02:19]} 12. Bxc3 {[%clk 0:02:20]}  Ne4 {[%clk 0:02:19]} 13. Bb2 {[%clk 0:02:20]}  Qa5 {[%clk 0:02:13]} 14. Nd2 {[%clk 0:01:49]}  Nxd2 {[%clk 0:01:59]} 15. Rxd2 {[%clk 0:01:47]}  e6 {[%clk 0:01:35]} 16. dxc5 {[%clk 0:01:34]}  Bxb2 {[%clk 0:00:53]} 17. Qxb2 {[%clk 0:01:30]}  dxc5 {[%clk 0:00:52]} 18. Rfd1 {[%clk 0:01:28]}  Qc7 {[%clk 0:00:50]} 19. Rd6 {[%clk 0:01:06]}  Rb8 {[%clk 0:00:49]} 20. Qe5 {[%clk 0:01:02]}  b6 {[%clk 0:00:33]} 21. h4 {[%clk 0:00:50]}  Qg7 {[%clk 0:00:28]} 22. Qe3 {[%clk 0:00:34]}  f4 {[%clk 0:00:27]} 23. gxf4 {[%clk 0:00:34]}  Qf6 {[%clk 0:00:27]} 24. Qg3 {[%clk 0:00:27]}  Bb7 {[%clk 0:00:27]} 25. Bh3 {[%clk 0:00:24]}  Rbe8 {[%clk 0:00:24]} 26. e3 {[%clk 0:00:23]}  Bc8 {[%clk 0:00:24]} 27. Bg4 {[%clk 0:00:22]}  e5 {[%clk 0:00:23]} 28. fxe5 {[%clk 0:00:20]}  Qxe5 {[%clk 0:00:21]} 29. Qxe5 {[%clk 0:00:18]}  Rxe5 {[%clk 0:00:21]} 30. Bxc8 {[%clk 0:00:19]}  Rxc8 {[%clk 0:00:20]} 31. Rd8+ {[%clk 0:00:20]}  Rxd8 {[%clk 0:00:20]} 32. Rxd8+ {[%clk 0:00:21]}  Kg7 {[%clk 0:00:20]} 33. Rd7+ {[%clk 0:00:21]}  Kh6 {[%clk 0:00:19]} 34. Rxa7 {[%clk 0:00:22]}  Re4 {[%clk 0:00:18]} 35. Rb7 {[%clk 0:00:22]}  Re6 {[%clk 0:00:19]} 36. Kg2 {[%clk 0:00:22]}  Rd6 {[%clk 0:00:19]} 37. Kg3 {[%clk 0:00:23]}  Rd2 {[%clk 0:00:19]} 38. Rxb6 {[%clk 0:00:23]}  Rxa2 {[%clk 0:00:19]} 39. Rb5 {[%clk 0:00:23]}  Ra3 {[%clk 0:00:20]} 40. Kf4 {[%clk 0:00:23]}  Kh5 {[%clk 0:00:19]} 41. Rb7 {[%clk 0:00:23]}  h6 {[%clk 0:00:19]} 42. Rb6 {[%clk 0:00:23]}  g5+ {[%clk 0:00:19]} 43. hxg5 {[%clk 0:00:23]}  hxg5+ {[%clk 0:00:20]} 44. Ke4 {[%clk 0:00:23]}  Ra2 {[%clk 0:00:20]} 45. f3 {[%clk 0:00:23]}  Re2 {[%clk 0:00:19]} 46. Rb5 {[%clk 0:00:23]}  Rb2 {[%clk 0:00:17]} 47. Kd5 {[%clk 0:00:23]}  Kh4 {[%clk 0:00:18]} 48. Kxc5 {[%clk 0:00:24]}  Kg3 {[%clk 0:00:17]} 49. Kd4 {[%clk 0:00:24]}  Kxf3 {[%clk 0:00:18]} 50. Kc3 {[%clk 0:00:25]}  Re2 {[%clk 0:00:17]} 51. Rxg5 {[%clk 0:00:25]}  Rxe3+ {[%clk 0:00:18]} 52. Kb4 {[%clk 0:00:25]}  Kf4 {[%clk 0:00:19]} 53. Rd5 {[%clk 0:00:25]}  Ke4 {[%clk 0:00:19]} 54. Ka4 {[%clk 0:00:23]}  Re1 {[%clk 0:00:18]} 55. b4 {[%clk 0:00:22]}  Rc1 {[%clk 0:00:17]} 56. Kb5 {[%clk 0:00:23]}  Rc2 {[%clk 0:00:17]} 57. Rd8 {[%clk 0:00:22]}  Ke5 {[%clk 0:00:16]} 58. c5 {[%clk 0:00:23]}  Ke6 {[%clk 0:00:17]} 59. c6 {[%clk 0:00:23]}  Ke7 {[%clk 0:00:18]} 60. Rd1 {[%clk 0:00:22]}  Rxc6 {[%clk 0:00:14]} 61. Kxc6 {[%clk 0:00:22]} 1-0


[Site "https://www.chess.com"]

[Event "Titled Tuesday Blitz November 14 Late 2023"]
[White "Mariia89"]
[Black "Dragomirescu, Robin-Alexandru"]
[BlackFideId "1213849"]
[WhiteElo "2175"]
[BlackElo "2543"]
[Result "0-1"]
[Round "1"]
[TimeControl "180+1"]
[Date "2023.11.14"]
[WhiteClock "0:00:11"]
[BlackClock "0:01:00"]
[Board "157"]

1. d4 {[%clk 0:03:00]}  d5 {[%clk 0:02:57]} 2. c4 {[%clk 0:02:59]}  Nc6 {[%clk 0:02:58]} 3. Nf3 {[%clk 0:02:58]}  Bg4 {[%clk 0:02:57]} 4. e3 {[%clk 0:02:55]}  e5 {[%clk 0:02:56]} 5. dxe5 {[%clk 0:02:49]}  d4 {[%clk 0:02:56]} 6. h3 {[%clk 0:02:40]}  Bb4+ {[%clk 0:02:55]} 7. Bd2 {[%clk 0:02:39]}  dxe3 {[%clk 0:02:54]} 8. fxe3 {[%clk 0:02:36]}  Bxf3 {[%clk 0:02:48]} 9. Qxf3 {[%clk 0:02:05]}  Nxe5 {[%clk 0:02:46]} 10. Qe4 {[%clk 0:01:56]}  Qe7 {[%clk 0:02:25]} 11. Qxb7 {[%clk 0:01:40]}  Bxd2+ {[%clk 0:02:21]} 12. Nxd2 {[%clk 0:01:38]}  Rd8 {[%clk 0:02:22]} 13. Qb5+ {[%clk 0:01:13]}  c6 {[%clk 0:02:20]} 14. Qa5 {[%clk 0:00:54]}  Nf6 {[%clk 0:02:20]} 15. O-O-O {[%clk 0:00:46]}  O-O {[%clk 0:02:18]} 16. Qc3 {[%clk 0:00:43]}  Rfe8 {[%clk 0:01:40]} 17. Be2 {[%clk 0:00:39]}  Ned7 {[%clk 0:01:39]} 18. Bf3 {[%clk 0:00:38]}  Qxe3 {[%clk 0:01:27]} 19. Qxe3 {[%clk 0:00:37]}  Rxe3 {[%clk 0:01:28]} 20. Bxc6 {[%clk 0:00:36]}  Ne5 {[%clk 0:01:26]} 21. Bf3 {[%clk 0:00:33]}  Nd3+ {[%clk 0:01:24]} 22. Kb1 {[%clk 0:00:31]}  Nf2 {[%clk 0:01:25]} 23. Rhe1 {[%clk 0:00:22]}  Rxe1 {[%clk 0:01:08]} 24. Rxe1 {[%clk 0:00:22]}  Rxd2 {[%clk 0:01:09]} 25. c5 {[%clk 0:00:20]}  Nd3 {[%clk 0:01:02]} 26. Re7 {[%clk 0:00:13]}  Rxb2+ {[%clk 0:00:59]} 27. Ka1 {[%clk 0:00:13]}  Rc2 {[%clk 0:01:00]} 28. Rc7 {[%clk 0:00:11]}  Rc1# {[%clk 0:01:00]} 0-1


[Site "https://www.chess.com"]

[Event "Titled Tuesday Blitz November 14 Late 2023"]
[White "Novikova, Margarita"]
[Black "Statham_l3"]
[WhiteFideId "14109689"]
[WhiteElo "2156"]
[BlackElo "2542"]
[Result "1-0"]
[Round "1"]
[TimeControl "180+1"]
[Date "2023.11.14"]
[WhiteClock "0:00:33"]
[BlackClock "0:00:00"]
[Board "159"]

1. e4 {[%clk 0:03:00]}  e5 {[%clk 0:02:58]} 2. Nf3 {[%clk 0:02:59]}  Nc6 {[%clk 0:02:58]} 3. Bc4 {[%clk 0:03:00]}  Bc5 {[%clk 0:02:57]} 4. d3 {[%clk 0:03:01]}  Nf6 {[%clk 0:02:55]} 5. O-O {[%clk 0:02:59]}  d6 {[%clk 0:02:55]} 6. a3 {[%clk 0:02:57]}  a5 {[%clk 0:02:49]} 7. h3 {[%clk 0:02:56]}  h6 {[%clk 0:02:49]} 8. Re1 {[%clk 0:02:51]}  Be6 {[%clk 0:02:45]} 9. Nbd2 {[%clk 0:02:50]}  Qd7 {[%clk 0:02:35]} 10. Bxe6 {[%clk 0:02:49]}  fxe6 {[%clk 0:00:29]} 11. Nb3 {[%clk 0:02:48]}  Bb6 {[%clk 0:00:28]} 12. d4 {[%clk 0:02:46]}  a4 {[%clk 0:00:28]} 13. dxe5 {[%clk 0:02:45]}  axb3 {[%clk 0:00:27]} 14. exf6 {[%clk 0:02:44]}  bxc2 {[%clk 0:00:27]} 15. Qxc2 {[%clk 0:02:44]}  gxf6 {[%clk 0:00:28]} 16. Bd2 {[%clk 0:02:31]}  O-O-O {[%clk 0:00:26]} 17. b4 {[%clk 0:02:28]}  e5 {[%clk 0:00:25]} 18. b5 {[%clk 0:02:26]}  Nd4 {[%clk 0:00:22]} 19. Nxd4 {[%clk 0:02:24]}  Bxd4 {[%clk 0:00:23]} 20. Qa4 {[%clk 0:02:23]}  Kb8 {[%clk 0:00:13]} 21. Rac1 {[%clk 0:02:17]}  Rhg8 {[%clk 0:00:12]} 22. Kh1 {[%clk 0:02:13]}  Bxf2 {[%clk 0:00:12]} 23. Rf1 {[%clk 0:02:06]}  Bb6 {[%clk 0:00:11]} 24. Ba5 {[%clk 0:01:57]}  Rg3 {[%clk 0:00:10]} 25. Bxb6 {[%clk 0:01:50]}  cxb6 {[%clk 0:00:11]} 26. Rf5 {[%clk 0:01:46]}  Rdg8 {[%clk 0:00:10]} 27. Rc2 {[%clk 0:01:41]}  d5 {[%clk 0:00:09]} 28. Rd2 {[%clk 0:01:28]}  Qc8 {[%clk 0:00:08]} 29. Qd1 {[%clk 0:01:22]}  Qc3 {[%clk 0:00:05]} 30. Rh5 {[%clk 0:01:16]}  dxe4 {[%clk 0:00:04]} 31. Rxh6 {[%clk 0:01:10]}  e3 {[%clk 0:00:04]} 32. Re2 {[%clk 0:01:05]}  Qd4 {[%clk 0:00:03]} 33. Qf1 {[%clk 0:01:00]}  Qe4 {[%clk 0:00:03]} 34. Rxf6 {[%clk 0:00:49]}  Ka7 {[%clk 0:00:02]} 35. Rf3 {[%clk 0:00:42]}  Rxf3 {[%clk 0:00:02]} 36. gxf3 {[%clk 0:00:38]}  Qf4 {[%clk 0:00:00]} 37. a4 {[%clk 0:00:33]} 1-0


[Site "https://www.chess.com"]

[Event "Titled Tuesday Blitz November 14 Late 2023"]
[White "dodoucb"]
[Black "Fuentes Godoy, Lilia Ivonne"]
[BlackFideId "5104130"]
[WhiteElo "2540"]
[BlackElo "2138"]
[Result "1-0"]
[Round "1"]
[TimeControl "180+1"]
[Date "2023.11.14"]
[WhiteClock "0:00:01"]
[BlackClock "0:00:00"]
[Board "162"]

1. e4 {[%clk 0:02:57]}  c6 {[%clk 0:02:59]} 2. d4 {[%clk 0:02:56]}  d5 {[%clk 0:03:00]} 3. e5 {[%clk 0:02:55]}  Bf5 {[%clk 0:03:00]} 4. g4 {[%clk 0:02:53]}  Bg6 {[%clk 0:02:58]} 5. e6 {[%clk 0:02:48]}  fxe6 {[%clk 0:02:45]} 6. Nf3 {[%clk 0:02:46]}  Nf6 {[%clk 0:02:37]} 7. Bd3 {[%clk 0:02:33]}  Be4 {[%clk 0:02:20]} 8. g5 {[%clk 0:02:04]}  Bxd3 {[%clk 0:02:12]} 9. Qxd3 {[%clk 0:01:42]}  Ne4 {[%clk 0:02:11]} 10. Nbd2 {[%clk 0:01:39]}  Nxd2 {[%clk 0:02:10]} 11. Bxd2 {[%clk 0:01:38]}  g6 {[%clk 0:02:10]} 12. h4 {[%clk 0:01:34]}  Qb6 {[%clk 0:01:54]} 13. h5 {[%clk 0:01:00]}  Rg8 {[%clk 0:01:52]} 14. hxg6 {[%clk 0:00:50]}  hxg6 {[%clk 0:01:53]} 15. Ne5 {[%clk 0:00:49]}  Nd7 {[%clk 0:01:36]} 16. Nxd7 {[%clk 0:00:28]}  Kxd7 {[%clk 0:01:36]} 17. O-O-O {[%clk 0:00:29]}  Bg7 {[%clk 0:01:31]} 18. c3 {[%clk 0:00:23]}  Raf8 {[%clk 0:01:20]} 19. Rde1 {[%clk 0:00:20]}  Bh8 {[%clk 0:00:54]} 20. f4 {[%clk 0:00:19]}  c5 {[%clk 0:00:50]} 21. dxc5 {[%clk 0:00:14]}  Qxc5 {[%clk 0:00:49]} 22. Re2 {[%clk 0:00:15]}  Rc8 {[%clk 0:00:47]} 23. Qh3 {[%clk 0:00:12]}  Rc6 {[%clk 0:00:46]} 24. Rhe1 {[%clk 0:00:11]}  Qb6 {[%clk 0:00:36]} 25. Kb1 {[%clk 0:00:11]}  d4 {[%clk 0:00:29]} 26. cxd4 {[%clk 0:00:07]}  Bxd4 {[%clk 0:00:28]} 27. Bc1 {[%clk 0:00:08]}  Rgc8 {[%clk 0:00:23]} 28. Rd1 {[%clk 0:00:04]}  Kc7 {[%clk 0:00:19]} 29. b3 {[%clk 0:00:04]}  Qb4 {[%clk 0:00:12]} 30. Qg3 {[%clk 0:00:04]}  Kd7 {[%clk 0:00:09]} 31. Qd3 {[%clk 0:00:03]}  Rd6 {[%clk 0:00:06]} 32. Qxg6 {[%clk 0:00:04]}  Qc3 {[%clk 0:00:06]} 33. Bb2 {[%clk 0:00:03]}  Qc5 {[%clk 0:00:03]} 34. Bxd4 {[%clk 0:00:01]}  Rxd4 {[%clk 0:00:04]} 35. Qxe6+ {[%clk 0:00:01]}  Kc7 {[%clk 0:00:00]} 36. Rc1 {[%clk 0:00:01]} 1-0


[Site "https://www.chess.com"]